fUST/lending_fUST_20260610
["ID","MTS","AMOUNT","RATE_DAILY","PERIOD"]
[424689254,1781052641000,-500.0,0.00019452,2]
[424689267,1781052641000,-8914.33,0.00019452,2]
[424689206,1781052641000,-500.0,0.00019452,2]
[424689243,1781052641000,-467.62838398,0.00019452,2]
[424689205,1781052641000,-500.0,0.00019452,2]
[424689143,1781052641000,-500.0,0.00019452,2]
[424689203,1781052641000,-500.0,0.00019452,2]
[424689145,1781052641000,-500.0,0.00019452,2]
[424689146,1781052641000,-500.0,0.00019452,2]
[424689150,1781052641000,-500.0,0.00019452,2]
[424689152,1781052641000,-500.0,0.00019452,2]
[424689170,1781052641000,-500.0,0.00019452,2]
[424689154,1781052641000,-500.0,0.00019452,2]
[424689168,1781052641000,-500.0,0.00019452,2]
[424689155,1781052641000,-500.0,0.00019452,2]
[424689157,1781052641000,-500.0,0.00019452,2]
[424689159,1781052641000,-500.0,0.00019452,2]
[424689164,1781052641000,-500.0,0.00019452,2]
[424689166,1781052641000,-937.39,0.00019452,2]
[424689162,1781052641000,-500.0,0.00019452,2]
[424689161,1781052641000,-500.0,0.00019452,2]
[424689172,1781052641000,-500.0,0.00019452,2]
[424689174,1781052641000,-379.74649,0.00019452,2]
[424689187,1781052641000,-509.61,0.00019452,2]
[424689185,1781052641000,-500.0,0.00019452,2]
[424689192,1781052641000,-500.0,0.00019452,2]
[424689189,1781052641000,-500.0,0.00019452,2]
[424689191,1781052641000,-500.0,0.00019452,2]
[424689196,1781052641000,-500.0,0.00019452,2]
[424689177,1781052641000,-500.0,0.00019452,2]
[424689181,1781052641000,-500.0,0.00019452,2]
[424689176,1781052641000,-500.0,0.00019452,2]
[424689179,1781052641000,-500.0,0.00019452,2]
[424689194,1781052641000,-500.0,0.00019452,2]
[424689183,1781052641000,-518.06,0.00019452,2]
[424689201,1781052641000,-500.0,0.00019452,2]
[424689199,1781052641000,-533.85,0.00019452,2]
[424689265,1781052641000,-1669.76,0.00019452,2]
[424689148,1781052641000,-500.0,0.00019452,2]
[424689264,1781052641000,-785.88,0.00019452,2]
[424689324,1781052641000,-500.0,0.00019452,2]
[424689332,1781052641000,-1243.13,0.00019452,2]
[424689341,1781052641000,-1498.1,0.00019452,2]
[424689337,1781052641000,-2279.89,0.00019452,2]
[424689334,1781052641000,-5195.56,0.00019452,2]
[424689336,1781052641000,-500.0,0.00019452,2]
[424689339,1781052641000,-500.0,0.00019452,2]
[424689343,1781052641000,-500.0,0.00019452,2]
[424689345,1781052641000,-500.0,0.00019452,2]
[424689351,1781052641000,-221.0214,0.00019454,2]
[424689349,1781052641000,-664.35,0.00019452,2]
[424689347,1781052641000,-500.0,0.00019452,2]
[424689353,1781052641000,-245.74601181,0.00019489,2]
[424689357,1781052641000,-662.67142045,0.00019566,2]
[424689328,1781052641000,-500.0,0.00019452,2]
[424689359,1781052641000,-300.0,0.00019589,3]
[424689360,1781052641000,-291.351872,0.000196,2]
[424689366,1781052641000,-261.498273,0.000196,2]
[424689370,1781052641000,-368.620604,0.000196,2]
[424689368,1781052641000,-357.986962,0.000196,2]
[424689364,1781052641000,-169.25875,0.000196,2]
[424689362,1781052641000,-216.365689,0.000196,2]
[424689373,1781052641000,-500.0,0.00019726,2]
[424689375,1781052641000,-500.0,0.00019726,2]
[424689379,1781052641000,-500.0,0.00019726,2]
[424689381,1781052641000,-500.0,0.00019726,2]
[424689377,1781052641000,-500.0,0.00019726,2]
[424689372,1781052641000,-245.74601181,0.00019626,2]
[424689384,1781052641000,-500.0,0.00019726,2]
[424689259,1781052641000,-500.0,0.00019452,2]
[424689355,1781052641000,-179.83814567,0.0001949,2]
[424689330,1781052641000,-500.0,0.00019452,2]
[424689383,1781052641000,-1239.06,0.00019726,2]
[424689322,1781052641000,-4883.8,0.00019452,2]
[424689260,1781052641000,-500.0,0.00019452,2]
[424689252,1781052641000,-1301.1375,0.00019452,2]
[424689269,1781052641000,-500.0,0.00019452,2]
[424689271,1781052641000,-500.0,0.00019452,2]
[424689275,1781052641000,-500.0,0.00019452,2]
[424689280,1781052641000,-500.0,0.00019452,2]
[424689273,1781052641000,-2879.64,0.00019452,2]
[424689276,1781052641000,-500.0,0.00019452,2]
[424689326,1781052641000,-3911.14,0.00019452,2]
[424689289,1781052641000,-802.86,0.00019452,2]
[424689291,1781052641000,-500.0,0.00019452,2]
[424689282,1781052641000,-500.0,0.00019452,2]
[424689284,1781052641000,-500.0,0.00019452,2]
[424689286,1781052641000,-2158.62,0.00019452,2]
[424689287,1781052641000,-459.83,0.00019452,2]
[424689278,1781052641000,-500.0,0.00019452,2]
[424689304,1781052641000,-1546.08,0.00019452,2]
[424689293,1781052641000,-500.0,0.00019452,2]
[424689300,1781052641000,-500.0,0.00019452,2]
[424689302,1781052641000,-500.0,0.00019452,2]
[424689299,1781052641000,-177.94464175,0.00019452,2]
[424689320,1781052641000,-1935.77,0.00019452,2]
[424689316,1781052641000,-500.0,0.00019452,2]
[424689315,1781052641000,-2307.46,0.00019452,2]
[424689318,1781052641000,-500.0,0.00019452,2]
[424689297,1781052641000,-1513.01,0.00019452,2]
[424689309,1781052641000,-500.0,0.00019452,2]
[424689306,1781052641000,-2954.84,0.00019452,2]
[424689311,1781052641000,-379.24848062,0.00019452,2]
[424689295,1781052641000,-500.0,0.00019452,2]
[424689307,1781052641000,-699.54,0.00019452,2]
[424689313,1781052641000,-500.0,0.00019452,2]
[424689468,1781052642000,-2014.39,0.00019726,2]
[424689465,1781052642000,-500.0,0.00019726,2]
[424689459,1781052642000,-2717.71,0.00019726,2]
[424689460,1781052642000,-500.0,0.00019726,2]
[424689462,1781052642000,-592.04,0.00019726,2]
[424689455,1781052642000,-500.0,0.00019726,2]
[424689446,1781052642000,-500.0,0.00019726,2]
[424689464,1781052642000,-1086.55,0.00019726,2]
[424689451,1781052642000,-500.0,0.00019726,2]
[424689450,1781052642000,-589.7,0.00019726,2]
[424689453,1781052642000,-500.0,0.00019726,2]
[424689448,1781052642000,-2671.8,0.00019726,2]
[424689457,1781052642000,-500.0,0.00019726,2]
[424689472,1781052642000,-500.0,0.00019726,2]
[424689496,1781052642000,-500.0,0.00019726,2]
[424689480,1781052642000,-500.0,0.00019726,2]
[424689478,1781052642000,-500.0,0.00019726,2]
[424689481,1781052642000,-3786.4,0.00019726,2]
[424689474,1781052642000,-500.0,0.00019726,2]
[424689483,1781052642000,-785.88,0.00019726,2]
[424689476,1781052642000,-500.0,0.00019726,2]
[424689485,1781052642000,-1669.76,0.00019726,2]
[424689487,1781052642000,-8914.33,0.00019726,2]
[424689488,1781052642000,-500.0,0.00019726,2]
[424689490,1781052642000,-225.24,0.00019726,2]
[424689492,1781052642000,-2879.64,0.00019726,2]
[424689494,1781052642000,-500.0,0.00019726,2]
[424689497,1781052642000,-500.0,0.00019726,2]
[424689444,1781052642000,-500.0,0.00019726,2]
[424689471,1781052642000,-1358.0232,0.00019726,2]
[424689438,1781052642000,-500.0,0.00019726,2]
[424689417,1781052642000,-500.0,0.00019726,2]
[424689434,1781052642000,-500.0,0.00019726,2]
[424689501,1781052642000,-2158.62,0.00019726,2]
[424689390,1781052642000,-500.0,0.00019726,2]
[424689386,1781052642000,-357.30895438,0.00019726,2]
[424689388,1781052642000,-500.0,0.00019726,2]
[424689393,1781052642000,-500.0,0.00019726,2]
[424689392,1781052642000,-500.0,0.00019726,2]
[424689401,1781052642000,-500.0,0.00019726,2]
[424689395,1781052642000,-500.0,0.00019726,2]
[424689402,1781052642000,-500.0,0.00019726,2]
[424689397,1781052642000,-500.0,0.00019726,2]
[424689404,1781052642000,-500.0,0.00019726,2]
[424689415,1781052642000,-500.0,0.00019726,2]
[424689411,1781052642000,-380.16,0.00019726,2]
[424689408,1781052642000,-937.39,0.00019726,2]
[424689409,1781052642000,-500.0,0.00019726,2]
[424689406,1781052642000,-500.0,0.00019726,2]
[424689413,1781052642000,-500.0,0.00019726,2]
[424689418,1781052642000,-518.06,0.00019726,2]
[424689422,1781052642000,-500.0,0.00019726,2]
[424689420,1781052642000,-500.0,0.00019726,2]
[424689424,1781052642000,-500.0,0.00019726,2]
[424689425,1781052642000,-533.85,0.00019726,2]
[424689427,1781052642000,-500.0,0.00019726,2]
[424689429,1781052642000,-500.0,0.00019726,2]
[424689431,1781052642000,-500.0,0.00019726,2]
[424689443,1781052642000,-651.02,0.00019726,2]
[424689441,1781052642000,-500.0,0.00019726,2]
[424689432,1781052642000,-500.0,0.00019726,2]
[424689436,1781052642000,-500.0,0.00019726,2]
[424689439,1781052642000,-500.0,0.00019726,2]
[424689507,1781052642000,-500.0,0.00019726,2]
[424689399,1781052642000,-500.0,0.00019726,2]
[424689499,1781052642000,-500.0,0.00019726,2]
[424689578,1781052642000,-163.78,0.00019958,2]
[424689580,1781052642000,-155.3373393,0.00019961,2]
[424689569,1781052642000,-150.32,0.00019912,2]
[424689576,1781052642000,-151.25,0.00019946,2]
[424689573,1781052642000,-190.41605701,0.00019937,2]
[424689575,1781052642000,-156.07,0.00019946,2]
[424689571,1781052642000,-662.67142045,0.00019916,2]
[424689582,1781052642000,-150.32,0.00019962,2]
[424689585,1781052642000,-151.25,0.00019996,2]
[424689583,1781052642000,-156.07,0.00019996,2]
[424689587,1781052642000,-200.0,0.00019999,2]
[424689589,1781052642000,-459.0,0.0002,2]
[424689591,1781052642000,-2697.59,0.0002,5]
[424689594,1781052642000,-150.0,0.0002,2]
[424689567,1781052642000,-155.33,0.00019911,2]
[424689593,1781052642000,-439850.58006972,0.0002,2]
[424689598,1781052642000,-664.35,0.0002,2]
[424689600,1781052642000,-500.0,0.0002,2]
[424689603,1781052642000,-500.0,0.0002,2]
[424689605,1781052642000,-500.0,0.0002,2]
[424689602,1781052642000,-500.0,0.0002,2]
[424689607,1781052642000,-500.0,0.0002,2]
[424689609,1781052642000,-1239.06,0.0002,2]
[424689610,1781052642000,-500.0,0.0002,2]
[424689612,1781052642000,-500.0,0.0002,2]
[424689614,1781052642000,-500.0,0.0002,2]
[424689616,1781052642000,-500.0,0.0002,2]
[424689617,1781052642000,-500.0,0.0002,2]
[424689503,1781052642000,-802.86,0.00019726,2]
[424689621,1781052642000,-500.0,0.0002,2]
[424689596,1781052642000,-66418.74787957,0.0002,2]
[424689565,1781052642000,-163.78,0.00019908,2]
[424689619,1781052642000,-500.0,0.0002,2]
[424689562,1781052642000,-151.25,0.00019896,2]
[424689556,1781052642000,-155.33,0.00019861,2]
[424689511,1781052642000,-500.0,0.00019726,2]
[424689509,1781052642000,-1513.01,0.00019726,2]
[424689513,1781052642000,-1546.08,0.00019726,2]
[424689514,1781052642000,-2954.84,0.00019726,2]
[424689518,1781052642000,-500.0,0.00019726,2]
[424689524,1781052642000,-4883.8,0.00019726,2]
[424689522,1781052642000,-1935.77,0.00019726,2]
[424689516,1781052642000,-699.54,0.00019726,2]
[424689520,1781052642000,-2307.46,0.00019726,2]
[424689535,1781052642000,-500.0,0.00019726,2]
[424689536,1781052642000,-2279.89,0.00019726,2]
[424689526,1781052642000,-500.0,0.00019726,2]
[424689529,1781052642000,-521.86,0.00019726,2]
[424689531,1781052642000,-500.0,0.00019726,2]
[424689505,1781052642000,-500.0,0.00019726,2]
[424689538,1781052642000,-500.0,0.00019726,2]
[424689564,1781052642000,-151.0,0.000199,2]
[424689560,1781052642000,-190.41,0.00019887,2]
[424689554,1781052642000,-4659.90669652,0.00019859,2]
[424689558,1781052642000,-150.32,0.00019862,2]
[424689540,1781052642000,-1243.13,0.00019726,2]
[424689550,1781052642000,-190.41,0.00019837,2]
[424689552,1781052642000,-151.25,0.00019846,2]
[424689545,1781052642000,-500.0,0.00019726,2]
[424689548,1781052642000,-662.67142045,0.00019768,2]
[424689543,1781052642000,-500.0,0.00019726,2]
[424689541,1781052642000,-1498.1,0.00019726,2]
[424689533,1781052642000,-5195.56,0.00019726,2]
[424689528,1781052642000,-3911.14,0.00019726,2]
[424689546,1781052642000,-664.35,0.00019726,2]
[424689715,1781052643000,-500.0,0.0002,2]
[424689713,1781052643000,-500.0,0.0002,2]
[424689707,1781052643000,-1086.55,0.0002,2]
[424689711,1781052643000,-2014.39,0.0002,2]
[424689701,1781052643000,-150.0,0.0002,2]
[424689694,1781052643000,-500.0,0.0002,2]
[424689705,1781052643000,-300.0,0.0002,4]
[424689703,1781052643000,-592.04,0.0002,2]
[424689709,1781052643000,-500.0,0.0002,2]
[424689698,1781052643000,-2717.71,0.0002,2]
[424689699,1781052643000,-500.0,0.0002,2]
[424689712,1781052643000,-500.0,0.0002,2]
[424689716,1781052643000,-500.0,0.0002,2]
[424689721,1781052643000,-8914.33,0.0002,2]
[424689720,1781052643000,-1669.76,0.0002,2]
[424689719,1781052643000,-785.88,0.0002,2]
[424689714,1781052643000,-500.0,0.0002,2]
[424689724,1781052643000,-2879.64,0.0002,2]
[424689722,1781052643000,-500.0,0.0002,2]
[424689730,1781052643000,-500.0,0.0002,2]
[424689728,1781052643000,-500.0,0.0002,2]
[424689726,1781052643000,-500.0,0.0002,2]
[424689743,1781052643000,-500.0,0.0002,2]
[424689732,1781052643000,-500.0,0.0002,2]
[424689747,1781052643000,-2954.84,0.0002,2]
[424689749,1781052643000,-699.54,0.0002,2]
[424689695,1781052643000,-500.0,0.0002,2]
[424689718,1781052643000,-3786.4,0.0002,2]
[424689689,1781052643000,-500.0,0.0002,2]
[424689659,1781052643000,-500.0,0.0002,2]
[424689681,1781052643000,-2671.8,0.0002,2]
[424689623,1781052643000,-500.0,0.0002,2]
[424689625,1781052643000,-500.0,0.0002,2]
[424689627,1781052643000,-500.0,0.0002,2]
[424689631,1781052643000,-500.0,0.0002,2]
[424689638,1781052643000,-500.0,0.0002,2]
[424689635,1781052643000,-500.0,0.0002,2]
[424689628,1781052643000,-500.0,0.0002,2]
[424689633,1781052643000,-937.39,0.0002,2]
[424689641,1781052643000,-500.0,0.0002,2]
[424689644,1781052643000,-518.06,0.0002,2]
[424689651,1781052643000,-255.56,0.0002,2]
[424689650,1781052643000,-500.0,0.0002,2]
[424689646,1781052643000,-500.0,0.0002,2]
[424689691,1781052643000,-500.0,0.0002,2]
[424689642,1781052643000,-500.0,0.0002,2]
[424689653,1781052643000,-533.85,0.0002,2]
[424689655,1781052643000,-500.0,0.0002,2]
[424689657,1781052643000,-500.0,0.0002,2]
[424689661,1781052643000,-500.0,0.0002,2]
[424689667,1781052643000,-500.0,0.0002,2]
[424689664,1781052643000,-500.0,0.0002,2]
[424689670,1781052643000,-500.0,0.0002,2]
[424689678,1781052643000,-500.0,0.0002,2]
[424689673,1781052643000,-500.0,0.0002,2]
[424689674,1781052643000,-500.0,0.0002,2]
[424689676,1781052643000,-651.02,0.0002,2]
[424689683,1781052643000,-589.7,0.0002,2]
[424689680,1781052643000,-500.0,0.0002,2]
[424689648,1781052643000,-216.7471587,0.0002,2]
[424689745,1781052643000,-1546.08,0.0002,2]
[424689741,1781052643000,-1513.01,0.0002,2]
[424689739,1781052643000,-500.0,0.0002,2]
[424689821,1781052643000,-590.19156462,0.00020119,2]
[424689817,1781052643000,-159.94004611,0.00020119,2]
[424689810,1781052643000,-1382.5085182,0.00020119,2]
[424689819,1781052643000,-515.31661737,0.00020119,2]
[424689812,1781052643000,-158.96443961,0.00020119,2]
[424689816,1781052643000,-750.49815279,0.00020119,2]
[424689814,1781052643000,-713.21259071,0.00020119,2]
[424689825,1781052643000,-192.01680912,0.00020119,2]
[424689823,1781052643000,-474.97989223,0.00020119,2]
[424689827,1781052643000,-1213.36322559,0.00020119,2]
[424689829,1781052643000,-1418.24524835,0.00020119,2]
[424689831,1781052643000,-661.1268704,0.00020119,2]
[424689838,1781052643000,-3196.32366718,0.00020119,2]
[424689808,1781052643000,-646.91228977,0.00020119,2]
[424689836,1781052643000,-204.38333612,0.00020119,2]
[424689840,1781052643000,-152.60500342,0.00020119,2]
[424689850,1781052643000,-1059.29297445,0.00020119,2]
[424689846,1781052643000,-328.63775144,0.00020119,2]
[424689842,1781052643000,-262.50658079,0.00020119,2]
[424689848,1781052643000,-163.64843569,0.00020119,2]
[424689851,1781052643000,-160.0,0.00020119,2]
[424689844,1781052643000,-679.45598146,0.00020119,2]
[424689853,1781052643000,-150.0,0.00020119,2]
[424689855,1781052643000,-1300.0,0.00020119,2]
[424689857,1781052643000,-600.98031486,0.00020119,2]
[424689861,1781052643000,-162.27040815,0.00020119,2]
[424689859,1781052643000,-295.20673761,0.00020119,2]
[424689734,1781052643000,-2158.62,0.0002,2]
[424689834,1781052643000,-391.35034296,0.00020119,2]
[424689806,1781052643000,-296.31352481,0.00020119,2]
[424689833,1781052643000,-2920.0,0.00020119,2]
[424689802,1781052643000,-822.48210015,0.00020119,2]
[424689794,1781052643000,-156.07,0.00020096,2]
[424689755,1781052643000,-1935.77,0.0002,2]
[424689736,1781052643000,-802.86,0.0002,2]
[424689738,1781052643000,-500.0,0.0002,2]
[424689753,1781052643000,-2307.46,0.0002,2]
[424689771,1781052643000,-500.0,0.0002,2]
[424689772,1781052643000,-1243.13,0.0002,2]
[424689769,1781052643000,-2279.89,0.0002,2]
[424689776,1781052643000,-500.0,0.0002,2]
[424689757,1781052643000,-4883.8,0.0002,2]
[424689759,1781052643000,-500.0,0.0002,2]
[424689761,1781052643000,-3911.14,0.0002,2]
[424689767,1781052643000,-500.0,0.0002,2]
[424689763,1781052643000,-500.0,0.0002,2]
[424689751,1781052643000,-500.0,0.0002,2]
[424689765,1781052643000,-5195.56,0.0002,2]
[424689775,1781052643000,-1498.1,0.0002,2]
[424689792,1781052643000,-150.32,0.00020062,2]
[424689786,1781052643000,-1171.9230937,0.00020043,2]
[424689784,1781052643000,-150.32,0.00020012,2]
[424689798,1781052643000,-150.32,0.00020112,2]
[424689804,1781052643000,-332.01283452,0.00020119,2]
[424689796,1781052643000,-151.25,0.00020096,2]
[424689800,1781052643000,-300.0,0.00020119,2]
[424689788,1781052643000,-156.07,0.00020046,2]
[424689782,1781052643000,-163.81302298,0.00020008,2]
[424689780,1781052643000,-179.74,0.0002,2]
[424689778,1781052643000,-500.0,0.0002,2]
[424689790,1781052643000,-151.25,0.00020046,2]
[424689940,1781052644000,-151.0,0.00020119,2]
[424689953,1781052644000,-326.5395987,0.00020119,2]
[424689944,1781052644000,-317.692063,0.00020119,2]
[424689946,1781052644000,-326.5395987,0.00020119,2]
[424689927,1781052644000,-326.5395987,0.00020119,2]
[424689948,1781052644000,-457.4172908,0.00020119,2]
[424689938,1781052644000,-326.5395987,0.00020119,2]
[424689931,1781052644000,-151.0,0.00020119,2]
[424689932,1781052644000,-492.00924587,0.00020119,2]
[424689934,1781052644000,-151.0,0.00020119,2]
[424689929,1781052644000,-457.4172908,0.00020119,2]
[424689950,1781052644000,-151.0,0.00020119,2]
[424689936,1781052644000,-457.4172908,0.00020119,2]
[424689942,1781052644000,-326.5395987,0.00020119,2]
[424689970,1781052644000,-326.5395987,0.00020119,2]
[424689957,1781052644000,-457.4172908,0.00020119,2]
[424689959,1781052644000,-151.0,0.00020119,2]
[424689955,1781052644000,-457.4172908,0.00020119,2]
[424689961,1781052644000,-326.5395987,0.00020119,2]
[424689963,1781052644000,-457.4172908,0.00020119,2]
[424689966,1781052644000,-326.5395987,0.00020119,2]
[424689964,1781052644000,-457.4172908,0.00020119,2]
[424689972,1781052644000,-322.6795456,0.00020119,2]
[424689968,1781052644000,-326.5395987,0.00020119,2]
[424689974,1781052644000,-326.5395987,0.00020119,2]
[424689976,1781052644000,-326.5395987,0.00020119,2]
[424689978,1781052644000,-415.75771614,0.00020133,7]
[424689923,1781052644000,-457.4172908,0.00020119,2]
[424689951,1781052644000,-151.0,0.00020119,2]
[424689917,1781052644000,-326.5395987,0.00020119,2]
[424689869,1781052644000,-300.115,0.00020119,2]
[424689925,1781052644000,-151.0,0.00020119,2]
[424689865,1781052644000,-200.94759531,0.00020119,3]
[424689863,1781052644000,-593.68702751,0.00020119,2]
[424689875,1781052644000,-500.0,0.00020119,2]
[424689871,1781052644000,-300.115,0.00020119,2]
[424689873,1781052644000,-500.0,0.00020119,2]
[424689877,1781052644000,-500.0,0.00020119,2]
[424689879,1781052644000,-320.0,0.00020119,2]
[424689880,1781052644000,-320.0,0.00020119,2]
[424689882,1781052644000,-326.5395987,0.00020119,2]
[424689888,1781052644000,-326.5395987,0.00020119,2]
[424689886,1781052644000,-151.0,0.00020119,2]
[424689890,1781052644000,-198.867663,0.00020119,2]
[424689895,1781052644000,-326.5395987,0.00020119,2]
[424689921,1781052644000,-326.5395987,0.00020119,2]
[424689980,1781052644000,-156.07,0.00020146,2]
[424689893,1781052644000,-151.0,0.00020119,2]
[424689899,1781052644000,-151.0,0.00020119,2]
[424689884,1781052644000,-457.4172911,0.00020119,2]
[424689867,1781052644000,-500.0,0.00020119,2]
[424689901,1781052644000,-457.4172908,0.00020119,2]
[424689904,1781052644000,-326.5395987,0.00020119,2]
[424689906,1781052644000,-151.0,0.00020119,2]
[424689908,1781052644000,-457.4172908,0.00020119,2]
[424689910,1781052644000,-326.5395987,0.00020119,2]
[424689912,1781052644000,-215.91,0.00020119,2]
[424689914,1781052644000,-215.91,0.00020119,2]
[424689916,1781052644000,-151.0,0.00020119,2]
[424689919,1781052644000,-457.4172908,0.00020119,2]
[424689892,1781052644000,-457.4172908,0.00020119,2]
[424689982,1781052644000,-151.25,0.00020146,2]
[424689903,1781052644000,-326.5395989,0.00020119,2]
[424689987,1781052644000,-151.25,0.00020196,2]
[424690049,1781052644000,-500.0,0.00020273,2]
[424690047,1781052644000,-500.0,0.00020273,2]
[424690058,1781052644000,-500.0,0.00020273,2]
[424690062,1781052644000,-500.0,0.00020273,2]
[424690060,1781052644000,-500.0,0.00020273,2]
[424690071,1781052644000,-651.02,0.00020273,2]
[424690075,1781052644000,-158.23160353,0.00020273,2]
[424690077,1781052644000,-2671.8,0.00020273,2]
[424690073,1781052644000,-500.0,0.00020273,2]
[424690063,1781052644000,-500.0,0.00020273,2]
[424690054,1781052644000,-500.0,0.00020273,2]
[424690065,1781052644000,-500.0,0.00020273,2]
[424690069,1781052644000,-554.8,0.00020273,2]
[424690067,1781052644000,-500.0,0.00020273,2]
[424690078,1781052644000,-589.7,0.00020273,2]
[424690082,1781052644000,-500.0,0.00020273,2]
[424690084,1781052644000,-500.0,0.00020273,2]
[424690080,1781052644000,-500.0,0.00020273,2]
[424690086,1781052644000,-500.0,0.00020273,2]
[424690088,1781052644000,-2717.71,0.00020273,2]
[424690090,1781052644000,-500.0,0.00020273,2]
[424690099,1781052644000,-500.0,0.00020273,2]
[424690091,1781052644000,-592.04,0.00020273,2]
[424690093,1781052644000,-1086.55,0.00020273,2]
[424690095,1781052644000,-500.0,0.00020273,2]
[424690101,1781052644000,-500.0,0.00020273,2]
[424690097,1781052644000,-2014.39,0.00020273,2]
[424690103,1781052644000,-500.0,0.00020273,2]
[424689983,1781052644000,-150.32,0.00020162,2]
[424690043,1781052644000,-500.0,0.00020273,2]
[424690052,1781052644000,-500.0,0.00020273,2]
[424689897,1781052644000,-457.4172908,0.00020119,2]
[424690041,1781052644000,-500.0,0.00020273,2]
[424690045,1781052644000,-518.06,0.00020273,2]
[424689989,1781052644000,-221.0214,0.00020209,2]
[424689993,1781052644000,-156.07,0.00020246,2]
[424689985,1781052644000,-156.07,0.00020196,2]
[424689999,1781052644000,-200.0,0.00020272,2]
[424689997,1781052644000,-150.32,0.00020262,2]
[424689991,1781052644000,-150.32,0.00020212,2]
[424690001,1781052644000,-406.13,0.00020273,2]
[424690003,1781052644000,-500.0,0.00020273,2]
[424690018,1781052644000,-500.0,0.00020273,2]
[424690008,1781052644000,-500.0,0.00020273,2]
[424690016,1781052644000,-219.7,0.00020273,2]
[424690020,1781052644000,-500.0,0.00020273,2]
[424690014,1781052644000,-500.0,0.00020273,2]
[424689995,1781052644000,-151.25,0.00020246,2]
[424690010,1781052644000,-1239.06,0.00020273,2]
[424690051,1781052644000,-533.85,0.00020273,2]
[424690034,1781052644000,-500.0,0.00020273,2]
[424690039,1781052644000,-500.0,0.00020273,2]
[424690036,1781052644000,-937.39,0.00020273,2]
[424690024,1781052644000,-500.0,0.00020273,2]
[424690030,1781052644000,-500.0,0.00020273,2]
[424690038,1781052644000,-500.0,0.00020273,2]
[424690028,1781052644000,-500.0,0.00020273,2]
[424690026,1781052644000,-500.0,0.00020273,2]
[424690022,1781052644000,-500.0,0.00020273,2]
[424690005,1781052644000,-500.0,0.00020273,2]
[424690012,1781052644000,-500.0,0.00020273,2]
[424690006,1781052644000,-500.0,0.00020273,2]
[424690032,1781052644000,-500.0,0.00020273,2]
[424690181,1781052645000,-151.25,0.00020346,2]
[424690179,1781052645000,-156.07,0.00020346,2]
[424690168,1781052645000,-500.0,0.00020273,2]
[424690171,1781052645000,-664.35,0.00020274,2]
[424690166,1781052645000,-1498.1,0.00020273,2]
[424690162,1781052645000,-500.0,0.00020273,2]
[424690164,1781052645000,-1243.13,0.00020273,2]
[424690175,1781052645000,-151.25,0.00020296,2]
[424690177,1781052645000,-150.32,0.00020312,2]
[424690173,1781052645000,-156.07,0.00020296,2]
[424690185,1781052645000,-156.07,0.00020396,2]
[424690170,1781052645000,-500.0,0.00020273,2]